[Event "*** Titled Tuesday Blitz"]
[Site "Chess.com"]
[Date "2020.02.04"]
[Round "1"]
[White "SlavenPastar"]
[Black "MITerryble"]
[Result "0-1"]
[WhiteElo "2506"]
[BlackElo "2934"]
[TimeControl "180+2"]
[EndTime "9:07:36 PST"]
[Termination "MITerryble won by resignation"]

1. d4 {[%clk 0:03:01.5]} 1... e6 {[%clk 0:02:59.2]} 2. c4 {[%clk 0:03:02.6]}
2... Bb4+ {[%clk 0:02:59.5]} 3. Nc3 {[%clk 0:03:03.6]} 3... c5 {[%clk
0:03:00.2]} 4. e3 {[%clk 0:03:04.4]} 4... Bxc3+ {[%clk 0:02:59.7]} 5. bxc3
{[%clk 0:03:05]} 5... Qa5 {[%clk 0:03:01.6]} 6. Qc2 {[%clk 0:03:01.7]} 6... Nf6
{[%clk 0:03:01]} 7. Bd3 {[%clk 0:03:01.2]} 7... Nc6 {[%clk 0:03:01.9]} 8. Ne2
{[%clk 0:03:00.2]} 8... d6 {[%clk 0:03:02.2]} 9. O-O {[%clk 0:03:01]} 9... O-O
{[%clk 0:03:02.6]} 10. Rb1 {[%clk 0:03:02.1]} 10... b6 {[%clk 0:02:52]} 11. Ng3
{[%clk 0:02:58.7]} 11... h6 {[%clk 0:02:47.1]} 12. Ne4 {[%clk 0:02:46.9]} 12...
Nxe4 {[%clk 0:02:46.8]} 13. Bxe4 {[%clk 0:02:48.8]} 13... Bb7 {[%clk 0:02:47.2]}
14. Qe2 {[%clk 0:02:35.4]} 14... Rab8 {[%clk 0:02:33]} 15. Rb3 {[%clk 0:02:36]}
15... Qa6 {[%clk 0:02:31.5]} 16. Bd3 {[%clk 0:02:18.1]} 16... Na5 {[%clk
0:02:32]} 17. Ra3 {[%clk 0:02:16.9]} 17... Ba8 {[%clk 0:02:25.2]} 18. f4 {[%clk
0:02:05.9]} 18... Qb7 {[%clk 0:02:26]} 19. f5 {[%clk 0:02:01.8]} 19... exf5
{[%clk 0:02:24.9]} 20. Bxf5 {[%clk 0:01:56.9]} 20... Rbe8 {[%clk 0:02:23.8]} 21.
Bd2 {[%clk 0:01:40]} 21... Qe7 {[%clk 0:02:20.9]} 22. d5 {[%clk 0:01:31.3]}
22... Bb7 {[%clk 0:02:21.5]} 23. Bd3 {[%clk 0:01:31.7]} 23... Bc8 {[%clk
0:02:17]} 24. e4 {[%clk 0:01:31]} 24... f5 {[%clk 0:02:12.4]} 25. Re1 {[%clk
0:01:12.2]} 25... fxe4 {[%clk 0:02:00.9]} 26. Bxe4 {[%clk 0:01:11.7]} 26... Bf5
{[%clk 0:01:50.2]} 27. Bf3 {[%clk 0:01:02.2]} 27... Qf7 {[%clk 0:01:39.1]} 28.
Qf1 {[%clk 0:00:34.5]} 28... Rxe1 {[%clk 0:01:38.3]} 29. Bxe1 {[%clk 0:00:35.7]}
29... Be4 {[%clk 0:01:29.2]} 30. Bg3 {[%clk 0:00:31.9]} 30... Bxf3 {[%clk
0:01:26.3]} 31. gxf3 {[%clk 0:00:28.5]} 31... Qxf3 {[%clk 0:01:27.3]} 32. Qxf3
{[%clk 0:00:29.7]} 32... Rxf3 {[%clk 0:01:29.2]} 33. Bxd6 {[%clk 0:00:21.5]}
33... Nxc4 {[%clk 0:01:29.8]} 34. Rxa7 {[%clk 0:00:22.8]} 34... Nxd6 {[%clk
0:01:31.1]} 35. Rd7 {[%clk 0:00:22.2]} 35... Nc4 {[%clk 0:01:32.1]} 36. Rd8+
{[%clk 0:00:18.8]} 36... Kh7 {[%clk 0:01:32.9]} 37. d6 {[%clk 0:00:20]} 37...
Rxc3 {[%clk 0:01:33.8]} 38. d7 {[%clk 0:00:21.4]} 38... Rd3 {[%clk 0:01:35.2]}
39. Kf2 {[%clk 0:00:21]} 39... Ne5 {[%clk 0:01:36.6]} 40. Ke2 {[%clk 0:00:17.2]}
40... Rxd7 {[%clk 0:01:37.2]} 41. Rb8 {[%clk 0:00:18.7]} 41... Nc4 {[%clk
0:01:37.9]} 42. a4 {[%clk 0:00:18.2]} 42... Rd2+ {[%clk 0:01:38.9]} 43. Kf3
{[%clk 0:00:18.2]} 43... Rxh2 {[%clk 0:01:40.8]} 44. Ke4 {[%clk 0:00:19.6]}
44... Ra2 {[%clk 0:01:42]} 45. Kd5 {[%clk 0:00:20.7]} 45... Rxa4 {[%clk
0:01:43.3]} 0-1

[Event "*** Titled Tuesday Blitz"]
[Site "Chess.com"]
[Date "2020.02.04"]
[Round "1"]
[White "kesarev"]
[Black "sergoy"]
[Result "0-1"]
[WhiteElo "2482"]
[BlackElo "2872"]
[TimeControl "180+2"]
[EndTime "9:07:41 PST"]
[Termination "sergoy won by resignation"]

1. Nf3 {[%clk 0:02:59.9]} 1... Nf6 {[%clk 0:02:52.3]} 2. c4 {[%clk 0:02:58.3]}
2... c6 {[%clk 0:02:52.1]} 3. b3 {[%clk 0:02:48.9]} 3... d5 {[%clk 0:02:51.5]}
4. Bb2 {[%clk 0:02:50]} 4... g6 {[%clk 0:02:52.1]} 5. e3 {[%clk 0:02:45.8]} 5...
Bg7 {[%clk 0:02:53.1]} 6. d4 {[%clk 0:02:46.8]} 6... O-O {[%clk 0:02:54]} 7.
Nbd2 {[%clk 0:02:47.7]} 7... a5 {[%clk 0:02:55.6]} 8. a3 {[%clk 0:02:46.8]} 8...
Bf5 {[%clk 0:02:55]} 9. Nh4 {[%clk 0:02:45.1]} 9... Be6 {[%clk 0:02:55.3]} 10.
Bd3 {[%clk 0:02:44.1]} 10... Nbd7 {[%clk 0:02:55.2]} 11. O-O {[%clk 0:02:44.1]}
11... Ne8 {[%clk 0:02:46.7]} 12. Qc2 {[%clk 0:02:37.8]} 12... Nd6 {[%clk
0:02:46.4]} 13. c5 {[%clk 0:02:35.7]} 13... Nb5 {[%clk 0:02:46.2]} 14. a4 {[%clk
0:02:33.6]} 14... Nc7 {[%clk 0:02:47.1]} 15. Bc3 {[%clk 0:02:32]} 15... Na6
{[%clk 0:02:48]} 16. f4 {[%clk 0:02:30.7]} 16... f5 {[%clk 0:02:38.1]} 17. Nhf3
{[%clk 0:02:27.2]} 17... Kh8 {[%clk 0:02:37]} 18. Nb1 {[%clk 0:02:21.4]} 18...
b6 {[%clk 0:02:35.6]} 19. cxb6 {[%clk 0:02:20.1]} 19... Qxb6 {[%clk 0:02:36.5]}
20. Nbd2 {[%clk 0:02:15.9]} 20... Rfc8 {[%clk 0:02:35.1]} 21. Rfc1 {[%clk
0:02:14.5]} 21... Nb4 {[%clk 0:02:34.3]} 22. Bxb4 {[%clk 0:02:14.6]} 22... axb4
{[%clk 0:02:36.2]} 23. Ne5 {[%clk 0:01:59.7]} 23... Nxe5 {[%clk 0:02:35.7]} 24.
fxe5 {[%clk 0:02:00.3]} 24... Ra5 {[%clk 0:02:33.5]} 25. Nf3 {[%clk 0:01:58.2]}
25... c5 {[%clk 0:02:33]} 26. Bb5 {[%clk 0:01:46.7]} 26... c4 {[%clk 0:02:33.1]}
27. Ng5 {[%clk 0:01:38.8]} 27... Bg8 {[%clk 0:02:31]} 28. bxc4 {[%clk
0:00:52.6]} 28... dxc4 {[%clk 0:02:30.8]} 29. Qb2 {[%clk 0:00:52.5]} 29... b3
{[%clk 0:02:28.7]} 30. Rc3 {[%clk 0:00:47.5]} 30... Rca8 {[%clk 0:02:21.8]} 31.
Rac1 {[%clk 0:00:47.1]} 31... Rxb5 {[%clk 0:02:22]} 32. axb5 {[%clk 0:00:45.1]}
32... Ra2 {[%clk 0:02:23.2]} 33. Qb1 {[%clk 0:00:46.1]} 33... h6 {[%clk
0:02:19.9]} 34. Nf3 {[%clk 0:00:38.2]} 34... Qxb5 {[%clk 0:02:20.6]} 35. Rf1
{[%clk 0:00:35.8]} 35... Bd5 {[%clk 0:02:15.1]} 36. Nh4 {[%clk 0:00:34.2]} 36...
Qc6 {[%clk 0:02:13.7]} 37. Rf2 {[%clk 0:00:29.7]} 37... Rxf2 {[%clk 0:02:12.7]}
38. Kxf2 {[%clk 0:00:31]} 38... Be4 {[%clk 0:02:13.9]} 39. Qa1 {[%clk
0:00:30.4]} 39... Kh7 {[%clk 0:02:12.3]} 40. Nf3 {[%clk 0:00:29.9]} 40... Qb5
{[%clk 0:02:02.3]} 41. Qb2 {[%clk 0:00:27.8]} 41... Bd5 {[%clk 0:02:00.8]} 42.
Nd2 {[%clk 0:00:21.3]} 42... e6 {[%clk 0:02:01.9]} 43. Qc1 {[%clk 0:00:18.7]}
43... Qb4 {[%clk 0:02:01]} 44. Nb1 {[%clk 0:00:13.4]} 44... Bf8 {[%clk
0:02:01.1]} 45. Qd1 {[%clk 0:00:12.3]} 45... Qa5 {[%clk 0:01:56.3]} 46. Rc1
{[%clk 0:00:12.2]} 46... Bb4 {[%clk 0:01:56]} 47. Qe2 {[%clk 0:00:13.3]} 47...
Qa2 {[%clk 0:01:54.8]} 48. Nc3 {[%clk 0:00:11]} 48... Bxc3 {[%clk 0:01:53.9]}
49. Rxc3 {[%clk 0:00:11.1]} 49... Qxe2+ {[%clk 0:01:54.9]} 50. Kxe2 {[%clk
0:00:12]} 50... b2 {[%clk 0:01:56.5]} 0-1

[Event "*** Titled Tuesday Blitz"]
[Site "Chess.com"]
[Date "2020.02.04"]
[Round "1"]
[White "Nathan_Filgueiras"]
[Black "GukeshDommaraju"]
[Result "0-1"]
[WhiteElo "2265"]
[BlackElo "2641"]
[TimeControl "180+2"]
[EndTime "9:07:49 PST"]
[Termination "GukeshDommaraju won by resignation"]

1. e4 {[%clk 0:03:01.2]} 1... c5 {[%clk 0:02:59.2]} 2. Nf3 {[%clk 0:03:02]} 2...
Nc6 {[%clk 0:02:57.5]} 3. d4 {[%clk 0:03:02]} 3... cxd4 {[%clk 0:02:57.3]} 4.
Nxd4 {[%clk 0:03:03.9]} 4... Nf6 {[%clk 0:02:56.9]} 5. Nc3 {[%clk 0:03:04.3]}
5... e5 {[%clk 0:02:57.6]} 6. Ndb5 {[%clk 0:03:02.3]} 6... d6 {[%clk 0:02:58.1]}
7. Bg5 {[%clk 0:02:53.8]} 7... a6 {[%clk 0:02:57.3]} 8. Na3 {[%clk 0:02:52.5]}
8... b5 {[%clk 0:02:56.5]} 9. Nd5 {[%clk 0:02:52.1]} 9... Be7 {[%clk 0:02:57.1]}
10. Bxf6 {[%clk 0:02:53.1]} 10... Bxf6 {[%clk 0:02:57]} 11. c3 {[%clk 0:02:55]}
11... Bg5 {[%clk 0:02:54.1]} 12. Nc2 {[%clk 0:02:55.4]} 12... Rb8 {[%clk
0:02:54.6]} 13. a4 {[%clk 0:02:46.9]} 13... bxa4 {[%clk 0:02:54.1]} 14. Ncb4
{[%clk 0:02:47.6]} 14... Nxb4 {[%clk 0:02:53.4]} 15. Nxb4 {[%clk 0:02:48.2]}
15... Bd7 {[%clk 0:02:37.3]} 16. Bxa6 {[%clk 0:02:42.6]} 16... Qa5 {[%clk
0:02:31.6]} 17. Qxd6 {[%clk 0:02:28.1]} 17... Rb6 {[%clk 0:02:29.9]} 18. Qd5
{[%clk 0:02:07.2]} 18... Rxa6 {[%clk 0:02:21.7]} 19. Nxa6 {[%clk 0:02:00.4]}
19... Qxa6 {[%clk 0:02:22.3]} 20. Qxe5+ {[%clk 0:02:00.5]} 20... Be7 {[%clk
0:02:22.6]} 21. Qxg7 {[%clk 0:01:28.5]} 21... Bf6 {[%clk 0:02:00.1]} 22. Qg3
{[%clk 0:01:28.4]} 22... Qc4 {[%clk 0:01:23.6]} 23. O-O-O {[%clk 0:00:59.8]}
23... a3 {[%clk 0:01:09.6]} 24. e5 {[%clk 0:00:23]} 24... a2 {[%clk 0:00:52.8]}
25. Kd2 {[%clk 0:00:17.4]} 25... Qd5+ {[%clk 0:00:36.2]} 26. Qd3 {[%clk
0:00:17.8]} 26... Bg5+ {[%clk 0:00:34.5]} 27. Ke2 {[%clk 0:00:18.9]} 27... Bb5
{[%clk 0:00:33.4]} 0-1

[Event "*** Titled Tuesday Blitz"]
[Site "Chess.com"]
[Date "2020.02.04"]
[Round "1"]
[White "Witik"]
[Black "saraswathii"]
[Result "1-0"]
[WhiteElo "2591"]
[BlackElo "2150"]
[TimeControl "180+2"]
[EndTime "9:08:06 PST"]
[Termination "Witik won by resignation"]

1. d4 {[%clk 0:03:00.7]} 1... Nc6 {[%clk 0:03:00.3]} 2. Nf3 {[%clk 0:02:55.3]}
2... d5 {[%clk 0:03:01]} 3. c4 {[%clk 0:02:54.2]} 3... Nf6 {[%clk 0:02:59.8]} 4.
cxd5 {[%clk 0:02:53.2]} 4... Qxd5 {[%clk 0:02:57.9]} 5. Nc3 {[%clk 0:02:53.9]}
5... Qh5 {[%clk 0:02:58.6]} 6. d5 {[%clk 0:02:32.5]} 6... Ne5 {[%clk 0:02:54]}
7. Bf4 {[%clk 0:02:31]} 7... Nxf3+ {[%clk 0:02:54.7]} 8. exf3 {[%clk 0:02:32.1]}
8... c6 {[%clk 0:02:46.6]} 9. g4 {[%clk 0:02:15.4]} 9... Qh4 {[%clk 0:02:38.8]}
10. Qd2 {[%clk 0:01:37]} 10... h6 {[%clk 0:02:33.4]} 11. O-O-O {[%clk
0:01:32.6]} 11... Bd7 {[%clk 0:02:33]} 12. dxc6 {[%clk 0:01:25.1]} 12... Bxc6
{[%clk 0:02:27.4]} 13. Nb5 {[%clk 0:01:20.8]} 13... Nd5 {[%clk 0:02:17.7]} 14.
Bc4 {[%clk 0:00:33.9]} 14... e6 {[%clk 0:02:14.3]} 15. Bxd5 {[%clk 0:00:31.3]}
15... Bxb5 {[%clk 0:02:07.3]} 16. Bxb7 {[%clk 0:00:28]} 16... Rd8 {[%clk
0:02:06.1]} 17. Qa5 {[%clk 0:00:21.6]} 17... Bd7 {[%clk 0:01:58.6]} 18. Bc7
{[%clk 0:00:20]} 18... Be7 {[%clk 0:01:54.7]} 19. Bxd8 {[%clk 0:00:19]} 19...
Bxd8 {[%clk 0:01:56.6]} 20. Qd2 {[%clk 0:00:19]} 20... Ba4 {[%clk 0:01:49.7]}
21. b3 {[%clk 0:00:18.6]} 21... e5 {[%clk 0:01:36.3]} 22. Qxd8+ {[%clk
0:00:15.8]} 22... Qxd8 {[%clk 0:01:35.8]} 23. Rxd8+ {[%clk 0:00:17.7]} 23...
Kxd8 {[%clk 0:01:37]} 24. bxa4 {[%clk 0:00:19.6]} 24... Kc7 {[%clk 0:01:36.4]}
25. Bd5 {[%clk 0:00:20]} 25... f6 {[%clk 0:01:36.5]} 26. Be4 {[%clk 0:00:20.5]}
26... Kb6 {[%clk 0:01:35.7]} 27. Rd1 {[%clk 0:00:20.5]} 27... Rc8+ {[%clk
0:01:33]} 28. Kb2 {[%clk 0:00:21.5]} 28... Rc7 {[%clk 0:01:34.2]} 29. Kb3 {[%clk
0:00:21.7]} 29... Ka5 {[%clk 0:01:31.3]} 30. Rd5+ {[%clk 0:00:22.2]} 30... Ka6
{[%clk 0:01:31.5]} 31. Rb5 {[%clk 0:00:21.4]} 31... Rd7 {[%clk 0:01:29.6]} 32.
h4 {[%clk 0:00:21.2]} 32... Rc7 {[%clk 0:01:29.3]} 33. h5 {[%clk 0:00:22.1]}
33... Rd7 {[%clk 0:01:27.7]} 34. Kb4 {[%clk 0:00:18.2]} 34... Rd4+ {[%clk
0:01:27.8]} 35. Kb3 {[%clk 0:00:18.7]} 35... Rd7 {[%clk 0:01:27.6]} 36. a3
{[%clk 0:00:18.9]} 36... Rc7 {[%clk 0:01:28.1]} 37. Bd3 {[%clk 0:00:20]} 37...
Rf7 {[%clk 0:01:23]} 38. Rb8+ {[%clk 0:00:18.6]} 38... Ka5 {[%clk 0:01:23.3]}
39. Rb5+ {[%clk 0:00:19.4]} 39... Ka6 {[%clk 0:01:24.3]} 40. Rxe5+ {[%clk
0:00:19]} 40... Kb6 {[%clk 0:01:24.7]} 41. a5+ {[%clk 0:00:19.9]} 41... Kc7
{[%clk 0:01:24.6]} 42. Rb5 {[%clk 0:00:19.7]} 42... Rd7 {[%clk 0:01:23.6]} 43.
Be4 {[%clk 0:00:20.5]} 43... Rd2 {[%clk 0:01:24.3]} 44. Rb7+ {[%clk 0:00:21]}
44... Kd6 {[%clk 0:01:23.1]} 45. Rxa7 {[%clk 0:00:22.3]} 45... Rxf2 {[%clk
0:01:24.6]} 46. Rxg7 {[%clk 0:00:22.6]} 46... Ke5 {[%clk 0:01:21]} 47. a6 {[%clk
0:00:23.3]} 1-0

[Event "*** Titled Tuesday Blitz"]
[Site "Chess.com"]
[Date "2020.02.04"]
[Round "1"]
[White "Majkelopulos"]
[Black "severomorskij"]
[Result "0-1"]
[WhiteElo "2466"]
[BlackElo "2869"]
[TimeControl "180+2"]
[EndTime "9:08:13 PST"]
[Termination "severomorskij won by checkmate"]

1. e4 {[%clk 0:03:01.2]} 1... c5 {[%clk 0:03:00.3]} 2. Ne2 {[%clk 0:03:01.8]}
2... Nc6 {[%clk 0:02:58.1]} 3. g3 {[%clk 0:03:03]} 3... d5 {[%clk 0:02:49.4]} 4.
Bg2 {[%clk 0:03:04.1]} 4... dxe4 {[%clk 0:02:49.8]} 5. Bxe4 {[%clk 0:03:06]}
5... Nf6 {[%clk 0:02:50.4]} 6. Bg2 {[%clk 0:03:07.5]} 6... Bg4 {[%clk
0:02:49.1]} 7. h3 {[%clk 0:03:08.6]} 7... Bh5 {[%clk 0:02:49.6]} 8. g4 {[%clk
0:03:10]} 8... Bg6 {[%clk 0:02:50.5]} 9. Nbc3 {[%clk 0:03:10.3]} 9... e6 {[%clk
0:02:51.1]} 10. d3 {[%clk 0:03:10.9]} 10... Bd6 {[%clk 0:02:46.8]} 11. Be3
{[%clk 0:03:08]} 11... O-O {[%clk 0:02:38.1]} 12. Qd2 {[%clk 0:02:54.4]} 12...
Qd7 {[%clk 0:02:16.9]} 13. Nf4 {[%clk 0:02:41.1]} 13... Bxf4 {[%clk 0:02:03.3]}
14. Bxf4 {[%clk 0:02:43]} 14... Nd5 {[%clk 0:02:04.3]} 15. Bg3 {[%clk
0:02:28.9]} 15... Nd4 {[%clk 0:01:52.3]} 16. Nxd5 {[%clk 0:02:21.7]} 16... exd5
{[%clk 0:01:51.4]} 17. O-O {[%clk 0:02:21.2]} 17... f5 {[%clk 0:01:32.6]} 18. c3
{[%clk 0:01:17.8]} 18... Ne6 {[%clk 0:01:31]} 19. Be5 {[%clk 0:01:18.9]} 19...
f4 {[%clk 0:01:23.7]} 20. f3 {[%clk 0:01:17.7]} 20... d4 {[%clk 0:01:16.3]} 21.
c4 {[%clk 0:01:17]} 21... Rae8 {[%clk 0:01:03.9]} 22. Rae1 {[%clk 0:01:16.4]}
22... h6 {[%clk 0:00:55.2]} 23. h4 {[%clk 0:01:17.6]} 23... Bh7 {[%clk
0:00:56.1]} 24. Bh3 {[%clk 0:01:16]} 24... g5 {[%clk 0:00:53.5]} 25. Rf2 {[%clk
0:01:14.9]} 25... gxh4 {[%clk 0:00:44]} 26. Rfe2 {[%clk 0:01:11]} 26... Ng5
{[%clk 0:00:44.4]} 27. Bg2 {[%clk 0:01:06.2]} 27... h3 {[%clk 0:00:42.4]} 28.
Bh1 {[%clk 0:01:07.5]} 28... Qf7 {[%clk 0:00:25.6]} 29. Bd6 {[%clk 0:01:05.1]}
29... Re3 {[%clk 0:00:26.6]} 30. Bxc5 {[%clk 0:01:03.6]} 30... Rd8 {[%clk
0:00:15.5]} 31. Rxe3 {[%clk 0:00:57.6]} 31... dxe3 {[%clk 0:00:11.7]} 32. Qa5
{[%clk 0:00:56.3]} 32... b6 {[%clk 0:00:11.7]} 33. Bxb6 {[%clk 0:00:57.7]} 33...
axb6 {[%clk 0:00:12.3]} 34. Qxb6 {[%clk 0:00:59.6]} 34... Ne6 {[%clk 0:00:10.3]}
35. c5 {[%clk 0:00:46.9]} 35... Rxd3 {[%clk 0:00:10.8]} 36. c6 {[%clk
0:00:48.1]} 36... Rd2 {[%clk 0:00:11.3]} 37. Rc1 {[%clk 0:00:46.4]} 37... e2
{[%clk 0:00:12.6]} 38. Qb8+ {[%clk 0:00:45.4]} 38... Kg7 {[%clk 0:00:11.7]} 39.
Qe5+ {[%clk 0:00:46]} 39... Qf6 {[%clk 0:00:12.9]} 40. Qc5 {[%clk 0:00:36.8]}
40... Rd1+ {[%clk 0:00:13.4]} 41. Kf2 {[%clk 0:00:37.6]} 41... e1=Q# {[%clk
0:00:14.2]} 0-1

[Event "*** Titled Tuesday Blitz"]
[Site "Chess.com"]
[Date "2020.02.04"]
[Round "1"]
[White "GianmarcoVaR"]
[Black "Kostina_Nadezhda"]
[Result "1-0"]
[WhiteElo "2609"]
[BlackElo "2187"]
[TimeControl "180+2"]
[EndTime "9:08:16 PST"]
[Termination "GianmarcoVaR won by resignation"]

1. d4 {[%clk 0:02:57.7]} 1... d5 {[%clk 0:03:00.2]} 2. c4 {[%clk 0:02:57.9]}
2... e6 {[%clk 0:03:01.5]} 3. Nf3 {[%clk 0:02:59.5]} 3... c6 {[%clk 0:03:01.7]}
4. Qc2 {[%clk 0:02:55.1]} 4... Nf6 {[%clk 0:03:02]} 5. g3 {[%clk 0:02:52.4]}
5... Be7 {[%clk 0:02:56.9]} 6. Bg2 {[%clk 0:02:52.5]} 6... Kf8 {[%clk
0:02:57.8]} 7. O-O {[%clk 0:02:51.4]} 7... Kg8 {[%clk 0:02:59.7]} 8. Nbd2 {[%clk
0:02:49.8]} 8... g6 {[%clk 0:02:32.2]} 9. e4 {[%clk 0:02:48.8]} 9... dxe4 {[%clk
0:02:32.2]} 10. Nxe4 {[%clk 0:02:44.9]} 10... Kg7 {[%clk 0:02:32.7]} 11. Bf4
{[%clk 0:02:34.6]} 11... Nxe4 {[%clk 0:02:16.7]} 12. Qxe4 {[%clk 0:02:34.5]}
12... Nd7 {[%clk 0:02:17.5]} 13. d5 {[%clk 0:01:33.8]} 13... exd5 {[%clk
0:02:10.8]} 14. cxd5 {[%clk 0:01:31.8]} 14... Nf6 {[%clk 0:02:11.3]} 15. Be5
{[%clk 0:01:27.5]} 15... Qxd5 {[%clk 0:02:08.7]} 16. Qe3 {[%clk 0:01:26]} 16...
Qc5 {[%clk 0:01:23.3]} 17. Bd4 {[%clk 0:01:19.6]} 17... Qd6 {[%clk 0:01:18.5]}
18. Rfe1 {[%clk 0:01:14.6]} 18... Re8 {[%clk 0:01:08.5]} 19. Rad1 {[%clk
0:01:13]} 19... Bg4 {[%clk 0:01:04.2]} 20. Be5 {[%clk 0:01:01.3]} 20... Qe6
{[%clk 0:01:01.1]} 21. Ng5 {[%clk 0:00:33.6]} 21... Qxa2 {[%clk 0:00:58.8]} 22.
Rd4 {[%clk 0:00:28.6]} 22... Be6 {[%clk 0:00:48.5]} 23. Rf4 {[%clk 0:00:22.8]}
23... h6 {[%clk 0:00:43.7]} 24. Ne4 {[%clk 0:00:22.3]} 24... Bf5 {[%clk
0:00:31.7]} 25. Nxf6 {[%clk 0:00:07.8]} 25... Bxf6 {[%clk 0:00:22.1]} 26. Bxf6+
{[%clk 0:00:09.1]} 26... Kh7 {[%clk 0:00:21.8]} 27. Qxe8 {[%clk 0:00:08.2]}
27... Rxe8 {[%clk 0:00:22]} 28. Rxe8 {[%clk 0:00:09.4]} 28... Qb1+ {[%clk
0:00:21.9]} 29. Bf1 {[%clk 0:00:09.3]} 29... g5 {[%clk 0:00:23]} 30. Rxf5 {[%clk
0:00:07.4]} 30... Qxf5 {[%clk 0:00:23.1]} 31. Bc3 {[%clk 0:00:07.9]} 31... b5
{[%clk 0:00:18.9]} 32. Bg2 {[%clk 0:00:08.9]} 32... a5 {[%clk 0:00:18.3]} 33.
Be4 {[%clk 0:00:09.6]} 33... Qxe4 {[%clk 0:00:16.4]} 34. Rxe4 {[%clk 0:00:11.1]}
1-0

[Event "*** Titled Tuesday Blitz"]
[Site "Chess.com"]
[Date "2020.02.04"]
[Round "1"]
[White "Raspadsistema"]
[Black "OhanyanEminChess"]
[Result "0-1"]
[WhiteElo "2813"]
[BlackElo "2455"]
[TimeControl "180+2"]
[EndTime "9:08:24 PST"]
[Termination "OhanyanEminChess won by resignation"]

1. e4 {[%clk 0:03:01.9]} 1... e5 {[%clk 0:03:00]} 2. Nf3 {[%clk 0:03:02.9]} 2...
Nc6 {[%clk 0:03:01.1]} 3. Bc4 {[%clk 0:03:04.3]} 3... Nf6 {[%clk 0:03:01.5]} 4.
d3 {[%clk 0:03:05.8]} 4... Bc5 {[%clk 0:03:01.4]} 5. c3 {[%clk 0:03:07.4]} 5...
d6 {[%clk 0:03:02.3]} 6. O-O {[%clk 0:03:07.7]} 6... a6 {[%clk 0:03:03.2]} 7.
Re1 {[%clk 0:03:08.9]} 7... Ba7 {[%clk 0:03:03.9]} 8. Bb3 {[%clk 0:03:10.4]}
8... Qe7 {[%clk 0:03:04.9]} 9. Nbd2 {[%clk 0:03:10.6]} 9... Be6 {[%clk
0:03:05.8]} 10. Nf1 {[%clk 0:03:05.9]} 10... h6 {[%clk 0:03:05.7]} 11. Ng3
{[%clk 0:03:05.9]} 11... Ng4 {[%clk 0:03:01.1]} 12. d4 {[%clk 0:03:01.3]} 12...
Bxb3 {[%clk 0:02:47.3]} 13. Qxb3 {[%clk 0:02:59.8]} 13... O-O-O {[%clk
0:02:36.1]} 14. h3 {[%clk 0:02:48.4]} 14... h5 {[%clk 0:02:08.6]} 15. Nf5 {[%clk
0:02:31.4]} 15... Qd7 {[%clk 0:01:25.7]} 16. hxg4 {[%clk 0:02:22.3]} 16... hxg4
{[%clk 0:01:27.6]} 17. Ng5 {[%clk 0:02:23.7]} 17... g6 {[%clk 0:00:49.9]} 18.
Ng3 {[%clk 0:02:22.5]} 18... Rdf8 {[%clk 0:00:24.4]} 19. d5 {[%clk 0:02:05.1]}
19... Nd8 {[%clk 0:00:25.7]} 20. c4 {[%clk 0:01:49.6]} 20... f6 {[%clk
0:00:18.3]} 21. Ne6 {[%clk 0:01:50.9]} 21... Nxe6 {[%clk 0:00:19.8]} 22. dxe6
{[%clk 0:01:52.8]} 22... Qxe6 {[%clk 0:00:21.7]} 23. Be3 {[%clk 0:01:53.8]}
23... Bxe3 {[%clk 0:00:22]} 24. Qxe3 {[%clk 0:01:55.5]} 24... f5 {[%clk
0:00:21.7]} 25. f4 {[%clk 0:01:23.9]} 25... gxf3 {[%clk 0:00:18.8]} 26. Qxf3
{[%clk 0:01:25.3]} 26... f4 {[%clk 0:00:20.1]} 27. Nh1 {[%clk 0:01:22.1]} 27...
g5 {[%clk 0:00:11.3]} 28. Nf2 {[%clk 0:01:23.5]} 28... Rh4 {[%clk 0:00:11.4]}
29. g4 {[%clk 0:01:08.3]} 29... Qxc4 {[%clk 0:00:12.2]} 30. Rac1 {[%clk
0:01:07]} 30... Qxa2 {[%clk 0:00:09]} 31. Qc3 {[%clk 0:01:03.2]} 31... Qf7
{[%clk 0:00:08.6]} 32. Red1 {[%clk 0:01:03.3]} 32... Qd7 {[%clk 0:00:08.4]} 33.
Qb4 {[%clk 0:01:00.9]} 33... Kb8 {[%clk 0:00:06]} 34. Rc3 {[%clk 0:00:59.2]}
34... Rxg4+ {[%clk 0:00:05.7]} 35. Kf1 {[%clk 0:00:59]} 35... Rh4 {[%clk
0:00:07]} 36. Rdc1 {[%clk 0:00:59.7]} 36... Rc8 {[%clk 0:00:06.5]} 37. Rb3
{[%clk 0:00:58.7]} 37... Qb5+ {[%clk 0:00:05.3]} 38. Qxb5 {[%clk 0:00:58.1]}
38... axb5 {[%clk 0:00:07.2]} 39. Rxb5 {[%clk 0:01:00]} 39... g4 {[%clk
0:00:08.9]} 40. Kg2 {[%clk 0:00:58.8]} 40... Rch8 {[%clk 0:00:07.7]} 41. Rh1
{[%clk 0:00:50.5]} 41... f3+ {[%clk 0:00:07.1]} 42. Kg1 {[%clk 0:00:52.1]} 42...
g3 {[%clk 0:00:08.2]} 43. Rxh4 {[%clk 0:00:53]} 43... gxf2+ {[%clk 0:00:09.5]}
44. Kxf2 {[%clk 0:00:54.9]} 44... Rxh4 {[%clk 0:00:11]} 45. Kxf3 {[%clk
0:00:56.8]} 45... c6 {[%clk 0:00:09.4]} 46. Rb3 {[%clk 0:00:57.5]} 46... Rh3+
{[%clk 0:00:10.4]} 0-1